[Event "Early-Titled-Tuesday-Blitz-October-24-2023"]
[Site "Chess.com"]
[Date "2023.10.24"]
[Round "10"]
[White "Orujov2008"]
[Black "Meri-Arabidze"]
[Result "0-1"]
[WhiteElo "2731"]
[BlackElo "2614"]
[TimeControl "180+1"]
[EndTime "9:53:52 PDT"]
[Termination "Meri-Arabidze won by resignation"]

1. e4 {[%clk 0:03:00.9]} 1... c5 {[%clk 0:02:56.2]} 2. Nf3 {[%clk 0:03:00.8]}
2... e6 {[%clk 0:02:56.6]} 3. d4 {[%clk 0:03:00.8]} 3... cxd4 {[%clk 0:02:57.5]}
4. Nxd4 {[%clk 0:03:01.5]} 4... Nc6 {[%clk 0:02:57.8]} 5. Nc3 {[%clk 0:02:58]}
5... Qc7 {[%clk 0:02:57.8]} 6. f4 {[%clk 0:02:57.4]} 6... a6 {[%clk 0:02:56.7]}
7. Nxc6 {[%clk 0:02:57.3]} 7... Qxc6 {[%clk 0:02:55.3]} 8. Bd3 {[%clk
0:02:57.4]} 8... b5 {[%clk 0:02:50.1]} 9. Qe2 {[%clk 0:02:57.6]} 9... Bb7 {[%clk
0:02:49.4]} 10. Bd2 {[%clk 0:02:57.1]} 10... Rc8 {[%clk 0:02:49.4]} 11. a3
{[%clk 0:02:56.9]} 11... Nf6 {[%clk 0:02:37.1]} 12. O-O-O {[%clk 0:02:54.8]}
12... b4 {[%clk 0:02:27.1]} 13. axb4 {[%clk 0:02:38.7]} 13... Bxb4 {[%clk
0:02:28]} 14. Nd5 {[%clk 0:02:13.1]} 14... Bxd2+ {[%clk 0:02:20.9]} 15. Rxd2
{[%clk 0:02:00.2]} 15... Nxd5 {[%clk 0:02:18.7]} 16. exd5 {[%clk 0:01:52.3]}
16... Qxd5 {[%clk 0:02:11.8]} 17. Kb1 {[%clk 0:01:46.1]} 17... Qa5 {[%clk
0:02:02]} 18. f5 {[%clk 0:01:38.2]} 18... Bd5 {[%clk 0:01:39.6]} 19. c4 {[%clk
0:01:27]} 19... Bc6 {[%clk 0:01:26.3]} 20. Rf1 {[%clk 0:01:22.2]} 20... O-O
{[%clk 0:00:59.2]} 21. f6 {[%clk 0:01:20.4]} 21... Qg5 {[%clk 0:00:47.2]} 22.
fxg7 {[%clk 0:01:13.2]} 22... Rfe8 {[%clk 0:00:38.5]} 23. Qf2 {[%clk 0:01:06.9]}
23... f5 {[%clk 0:00:38.6]} 24. h3 {[%clk 0:01:03.3]} 24... Rb8 {[%clk
0:00:37.5]} 25. g4 {[%clk 0:00:58.3]} 25... f4 {[%clk 0:00:21.2]} 26. Be2 {[%clk
0:00:54]} 26... e5 {[%clk 0:00:17.8]} 27. Bd1 {[%clk 0:00:54.3]} 27... Qxg7
{[%clk 0:00:16.9]} 28. Re1 {[%clk 0:00:51.5]} 28... Rf8 {[%clk 0:00:15.1]} 29.
Bc2 {[%clk 0:00:49.3]} 29... f3 {[%clk 0:00:15.2]} 30. Bf5 {[%clk 0:00:46]}
30... a5 {[%clk 0:00:10.3]} 31. Qc5 {[%clk 0:00:43.5]} 31... a4 {[%clk
0:00:10.2]} 32. Qxe5 {[%clk 0:00:40.1]} 32... Qxe5 {[%clk 0:00:08.8]} 33. Rxe5
{[%clk 0:00:41]} 33... a3 {[%clk 0:00:09.2]} 34. Re7 {[%clk 0:00:36]} 34... h6
{[%clk 0:00:06.2]} 35. Re1 {[%clk 0:00:27.1]} 35... axb2 {[%clk 0:00:06]} 36.
Rxb2 {[%clk 0:00:24]} 36... Rxb2+ {[%clk 0:00:05.8]} 37. Kxb2 {[%clk 0:00:24.9]}
37... Kg7 {[%clk 0:00:05.9]} 38. Rf1 {[%clk 0:00:20.3]} 38... Kf6 {[%clk
0:00:06.2]} 39. Bxd7 {[%clk 0:00:18.4]} 39... Bxd7 {[%clk 0:00:05.7]} 40. Rxf3+
{[%clk 0:00:18.2]} 40... Kg7 {[%clk 0:00:06.4]} 41. Rxf8 {[%clk 0:00:18.3]}
41... Kxf8 {[%clk 0:00:07.3]} 42. Kc3 {[%clk 0:00:15.9]} 42... Kg7 {[%clk
0:00:07.7]} 43. Kd3 {[%clk 0:00:13.8]} 43... Kf6 {[%clk 0:00:07.9]} 44. Ke3
{[%clk 0:00:05.9]} 44... Kg5 {[%clk 0:00:08.3]} 45. Kf3 {[%clk 0:00:04.2]} 45...
Kh4 {[%clk 0:00:08.3]} 46. Kf4 {[%clk 0:00:04.3]} 46... Bc6 {[%clk 0:00:04.7]}
47. c5 {[%clk 0:00:03.4]} 47... Bg2 {[%clk 0:00:04.4]} 48. Kf5 {[%clk
0:00:01.8]} 48... Bxh3 {[%clk 0:00:03.2]} 49. c6 {[%clk 0:00:02.3]} 49... Bxg4+
{[%clk 0:00:03.3]} 50. Kf6 {[%clk 0:00:03.2]} 50... h5 {[%clk 0:00:03.7]} 51.
Kg6 {[%clk 0:00:04.1]} 51... Bh3 {[%clk 0:00:02.6]} 52. Kf6 {[%clk 0:00:05]}
52... Bc8 {[%clk 0:00:02.8]} 53. Ke5 {[%clk 0:00:05.9]} 53... Kg4 {[%clk
0:00:03.2]} 54. Kd6 {[%clk 0:00:06.8]} 54... h4 {[%clk 0:00:03.8]} 55. Kc7
{[%clk 0:00:07.5]} 55... Bf5 {[%clk 0:00:04.4]} 56. Kb6 {[%clk 0:00:08.4]} 56...
h3 {[%clk 0:00:05]} 57. Kc5 {[%clk 0:00:09.3]} 57... h2 {[%clk 0:00:05.4]} 58.
c7 {[%clk 0:00:09.8]} 58... h1=Q {[%clk 0:00:05.9]} 59. c8=Q {[%clk 0:00:10.7]}
59... Qc1+ {[%clk 0:00:06]} 0-1

[Event "Early-Titled-Tuesday-Blitz-October-24-2023"]
[Site "Chess.com"]
[Date "2023.10.24"]
[Round "10"]
[White "dosto07"]
[Black "vovachesss"]
[Result "1/2-1/2"]
[WhiteElo "2500"]
[BlackElo "2756"]
[TimeControl "180+1"]
[EndTime "9:53:53 PDT"]
[Termination "Game drawn by stalemate"]

1. e4 {[%clk 0:03:00.9]} 1... e5 {[%clk 0:02:50.6]} 2. Nf3 {[%clk 0:03:00.7]}
2... Nc6 {[%clk 0:02:51.3]} 3. Bb5 {[%clk 0:03:00.6]} 3... a6 {[%clk 0:02:50.8]}
4. Bxc6 {[%clk 0:03:00.6]} 4... dxc6 {[%clk 0:02:50.7]} 5. O-O {[%clk
0:03:01.5]} 5... Qf6 {[%clk 0:02:51]} 6. d4 {[%clk 0:03:01.3]} 6... exd4 {[%clk
0:02:51.1]} 7. Bg5 {[%clk 0:03:01.6]} 7... Qg6 {[%clk 0:02:50]} 8. Qxd4 {[%clk
0:03:01.1]} 8... Bd7 {[%clk 0:02:37.2]} 9. Rd1 {[%clk 0:02:39.6]} 9... Qd6
{[%clk 0:02:35.6]} 10. Bf4 {[%clk 0:02:23.2]} 10... Qxd4 {[%clk 0:02:33.1]} 11.
Nxd4 {[%clk 0:02:22.6]} 11... O-O-O {[%clk 0:02:32.7]} 12. Nc3 {[%clk 0:02:22]}
12... Ne7 {[%clk 0:02:28.1]} 13. f3 {[%clk 0:02:20.6]} 13... Ng6 {[%clk
0:02:28.2]} 14. Bg3 {[%clk 0:02:20.6]} 14... Bc5 {[%clk 0:02:27.6]} 15. Bf2
{[%clk 0:02:19.1]} 15... Ne5 {[%clk 0:02:21.7]} 16. b3 {[%clk 0:02:18.8]} 16...
Rhe8 {[%clk 0:02:20.9]} 17. Kf1 {[%clk 0:02:17.1]} 17... f6 {[%clk 0:02:12.4]}
18. Nde2 {[%clk 0:02:15.6]} 18... Ba3 {[%clk 0:02:10.2]} 19. Rd2 {[%clk
0:02:03.5]} 19... Be6 {[%clk 0:02:00.3]} 20. Rad1 {[%clk 0:02:01.3]} 20... Rxd2
{[%clk 0:01:59.9]} 21. Rxd2 {[%clk 0:02:01.5]} 21... g5 {[%clk 0:01:59.2]} 22.
Rd1 {[%clk 0:01:47.7]} 22... h5 {[%clk 0:01:57.9]} 23. h3 {[%clk 0:01:45.6]}
23... Bd6 {[%clk 0:01:44]} 24. Nd4 {[%clk 0:01:43.8]} 24... Bd7 {[%clk
0:01:42.4]} 25. Nde2 {[%clk 0:01:40.1]} 25... f5 {[%clk 0:01:33.8]} 26. Ng3
{[%clk 0:01:32.3]} 26... Bb4 {[%clk 0:01:24]} 27. Be1 {[%clk 0:01:27.7]} 27...
fxe4 {[%clk 0:01:09.7]} 28. Ncxe4 {[%clk 0:01:18.1]} 28... Bxe1 {[%clk
0:01:04.9]} 29. Rxe1 {[%clk 0:01:18.3]} 29... g4 {[%clk 0:00:46.4]} 30. Nf6
{[%clk 0:01:14.9]} 30... Rf8 {[%clk 0:00:46.7]} 31. Rxe5 {[%clk 0:00:56.5]}
31... Rxf6 {[%clk 0:00:41.8]} 32. Nxh5 {[%clk 0:00:56.5]} 32... Rf8 {[%clk
0:00:38.7]} 33. hxg4 {[%clk 0:00:55.5]} 33... Bxg4 {[%clk 0:00:39.6]} 34. Ng3
{[%clk 0:00:44.7]} 34... Kd7 {[%clk 0:00:36.2]} 35. Rg5 {[%clk 0:00:41.2]} 35...
Be6 {[%clk 0:00:35.8]} 36. Rg7+ {[%clk 0:00:40.9]} 36... Kc8 {[%clk 0:00:36.1]}
37. Ne4 {[%clk 0:00:34.5]} 37... Bf5 {[%clk 0:00:36.4]} 38. Ke2 {[%clk
0:00:34.1]} 38... a5 {[%clk 0:00:30.2]} 39. g4 {[%clk 0:00:33.9]} 39... Bxe4
{[%clk 0:00:27.4]} 40. fxe4 {[%clk 0:00:34]} 40... Rh8 {[%clk 0:00:28.3]} 41.
Rf7 {[%clk 0:00:30.1]} 41... Rh2+ {[%clk 0:00:29.2]} 42. Rf2 {[%clk 0:00:29.9]}
42... Rh3 {[%clk 0:00:27.8]} 43. Rg2 {[%clk 0:00:21.6]} 43... Kd7 {[%clk
0:00:27.9]} 44. g5 {[%clk 0:00:21.9]} 44... Ke7 {[%clk 0:00:28.8]} 45. g6 {[%clk
0:00:21.9]} 45... Kf8 {[%clk 0:00:29.7]} 46. Rf2+ {[%clk 0:00:21.6]} 46... Kg8
{[%clk 0:00:15.9]} 47. Rf7 {[%clk 0:00:21.4]} 47... b5 {[%clk 0:00:13.7]} 48.
Rxc7 {[%clk 0:00:20.6]} 48... Rc3 {[%clk 0:00:14.4]} 49. Kd2 {[%clk 0:00:19.9]}
49... b4 {[%clk 0:00:15.3]} 50. g7 {[%clk 0:00:19.3]} 50... Rc5 {[%clk
0:00:14.9]} 51. Kd3 {[%clk 0:00:18.7]} 51... Rc3+ {[%clk 0:00:15.1]} 52. Kd2
{[%clk 0:00:18.5]} 52... Rc5 {[%clk 0:00:15.6]} 53. e5 {[%clk 0:00:18.7]} 53...
Rxe5 {[%clk 0:00:15.3]} 54. Rxc6 {[%clk 0:00:18.8]} 54... Kxg7 {[%clk 0:00:16]}
55. Kd3 {[%clk 0:00:17.8]} 55... Kf7 {[%clk 0:00:14.6]} 56. Kd4 {[%clk
0:00:18.1]} 56... Re2 {[%clk 0:00:13.9]} 57. Rc5 {[%clk 0:00:18.3]} 57... Ke6
{[%clk 0:00:13.8]} 58. Rxa5 {[%clk 0:00:18]} 58... Rxc2 {[%clk 0:00:13.8]} 59.
Kd3 {[%clk 0:00:17.2]} 59... Rc3+ {[%clk 0:00:12.7]} 60. Kd2 {[%clk 0:00:17.6]}
60... Rh3 {[%clk 0:00:12.8]} 61. Rb5 {[%clk 0:00:15.9]} 61... Rh2+ {[%clk
0:00:12.7]} 62. Kd3 {[%clk 0:00:16.1]} 62... Rxa2 {[%clk 0:00:13.6]} 63. Rxb4
{[%clk 0:00:16.3]} 63... Kd5 {[%clk 0:00:14.1]} 64. Rc4 {[%clk 0:00:16.2]} 64...
Ra1 {[%clk 0:00:10.7]} 65. Kc3 {[%clk 0:00:16.5]} 65... Rc1+ {[%clk 0:00:10.6]}
66. Kb4 {[%clk 0:00:16.6]} 66... Rxc4+ {[%clk 0:00:11.2]} 67. bxc4+ {[%clk
0:00:16.2]} 67... Kc6 {[%clk 0:00:11.9]} 68. c5 {[%clk 0:00:15.9]} 68... Kc7
{[%clk 0:00:12.1]} 69. Kb5 {[%clk 0:00:16.2]} 69... Kb7 {[%clk 0:00:12.6]} 70.
c6+ {[%clk 0:00:16]} 70... Kc7 {[%clk 0:00:12.9]} 71. Kc5 {[%clk 0:00:16.5]}
71... Kc8 {[%clk 0:00:13.5]} 72. Kb6 {[%clk 0:00:16.7]} 72... Kb8 {[%clk
0:00:13.7]} 73. c7+ {[%clk 0:00:16.7]} 73... Kc8 {[%clk 0:00:14.3]} 74. Kc6
{[%clk 0:00:17.2]} 1/2-1/2

[Event "Early-Titled-Tuesday-Blitz-October-24-2023"]
[Site "Chess.com"]
[Date "2023.10.24"]
[Round "10"]
[White "Matols"]
[Black "cristiano78"]
[Result "1/2-1/2"]
[WhiteElo "2377"]
[BlackElo "2257"]
[TimeControl "180+1"]
[EndTime "9:53:55 PDT"]
[Termination "Game drawn - insufficient material"]

1. d4 {[%clk 0:03:00.9]} 1... Nf6 {[%clk 0:02:59.5]} 2. c4 {[%clk 0:03:01.3]}
2... g6 {[%clk 0:02:54.3]} 3. g3 {[%clk 0:02:59.2]} 3... Bg7 {[%clk 0:02:52.9]}
4. Bg2 {[%clk 0:02:59.8]} 4... O-O {[%clk 0:02:53.5]} 5. Nc3 {[%clk 0:02:59.5]}
5... d6 {[%clk 0:02:54.1]} 6. Nf3 {[%clk 0:03:00.1]} 6... Nc6 {[%clk 0:02:54.7]}
7. O-O {[%clk 0:03:00.2]} 7... Bf5 {[%clk 0:02:54.6]} 8. Nh4 {[%clk 0:02:54.1]}
8... Bd7 {[%clk 0:02:53.8]} 9. e4 {[%clk 0:02:52.6]} 9... e5 {[%clk 0:02:50.6]}
10. Nf3 {[%clk 0:02:50.8]} 10... exd4 {[%clk 0:02:46.2]} 11. Nxd4 {[%clk
0:02:51.7]} 11... Nxe4 {[%clk 0:02:46.1]} 12. Nxc6 {[%clk 0:02:37.4]} 12... Nxc3
{[%clk 0:02:44.7]} 13. Nxd8 {[%clk 0:02:36.3]} 13... Nxd1 {[%clk 0:02:44.7]} 14.
Nxb7 {[%clk 0:02:16.8]} 14... Nxb2 {[%clk 0:02:42.8]} 15. Bxb2 {[%clk
0:01:47.7]} 15... Bxb2 {[%clk 0:02:39]} 16. Rab1 {[%clk 0:01:48.2]} 16... Bd4
{[%clk 0:02:36.5]} 17. Na5 {[%clk 0:01:42.3]} 17... Rab8 {[%clk 0:02:36.3]} 18.
Nc6 {[%clk 0:01:36.7]} 18... Bxc6 {[%clk 0:02:34.5]} 19. Bxc6 {[%clk 0:01:35.8]}
19... Rxb1 {[%clk 0:02:31.9]} 20. Rxb1 {[%clk 0:01:34.9]} 20... Bb6 {[%clk
0:02:32.6]} 21. Re1 {[%clk 0:01:32.4]} 21... Kg7 {[%clk 0:02:30.1]} 22. Kg2
{[%clk 0:01:29.5]} 22... f5 {[%clk 0:02:29.3]} 23. Bd5 {[%clk 0:01:22.7]} 23...
f4 {[%clk 0:02:23.5]} 24. Re7+ {[%clk 0:01:16.6]} 24... Kh6 {[%clk 0:02:23.6]}
25. g4 {[%clk 0:01:11.4]} 25... Kg5 {[%clk 0:02:16.5]} 26. Kf3 {[%clk
0:01:07.9]} 26... h6 {[%clk 0:02:11.8]} 27. Rg7 {[%clk 0:00:50.3]} 27... Kf6
{[%clk 0:02:06.1]} 28. Rh7 {[%clk 0:00:49.1]} 28... Kg5 {[%clk 0:02:05]} 29. Be4
{[%clk 0:00:45.6]} 29... Rf6 {[%clk 0:01:54.4]} 30. Rg7 {[%clk 0:00:44.1]} 30...
Re6 {[%clk 0:01:48.6]} 31. Rf7 {[%clk 0:00:22.3]} 31... Rf6 {[%clk 0:01:47.8]}
32. Rxf6 {[%clk 0:00:20.5]} 32... Kxf6 {[%clk 0:01:43.9]} 33. Kxf4 {[%clk
0:00:21]} 33... Bxf2 {[%clk 0:01:41.6]} 34. h3 {[%clk 0:00:20.7]} 34... Bg1
{[%clk 0:01:35.8]} 35. Bd5 {[%clk 0:00:20.1]} 35... Bh2+ {[%clk 0:01:33.6]} 36.
Ke4 {[%clk 0:00:20.2]} 36... Kg5 {[%clk 0:01:32.8]} 37. Kf3 {[%clk 0:00:19.2]}
37... Kf6 {[%clk 0:01:29.8]} 38. Ke4 {[%clk 0:00:19.2]} 38... Kg5 {[%clk
0:01:29.8]} 39. Kf3 {[%clk 0:00:19.6]} 39... Bg1 {[%clk 0:01:28.2]} 40. Bc6
{[%clk 0:00:18.2]} 40... Kf6 {[%clk 0:01:27]} 41. Ke4 {[%clk 0:00:18]} 41... a5
{[%clk 0:01:25.2]} 42. a4 {[%clk 0:00:17.2]} 42... Bc5 {[%clk 0:01:24.9]} 43.
Bd5 {[%clk 0:00:16.9]} 43... Kg5 {[%clk 0:01:22.4]} 44. Kf3 {[%clk 0:00:16.6]}
44... Kh4 {[%clk 0:01:21.8]} 45. Kg2 {[%clk 0:00:16.7]} 45... h5 {[%clk
0:01:22.7]} 46. gxh5 {[%clk 0:00:16]} 46... Kxh5 {[%clk 0:01:23.3]} 47. Kf3
{[%clk 0:00:15.4]} 47... g5 {[%clk 0:01:23.7]} 48. Be6 {[%clk 0:00:14.8]} 48...
Kg6 {[%clk 0:01:22.3]} 49. Ke4 {[%clk 0:00:14.8]} 49... Kf6 {[%clk 0:01:23.2]}
50. Bg4 {[%clk 0:00:14.2]} 50... Bf2 {[%clk 0:01:19]} 51. Kd5 {[%clk 0:00:14.2]}
51... Bb6 {[%clk 0:01:15.8]} 52. Kc6 {[%clk 0:00:14.4]} 52... Ke5 {[%clk
0:01:10.7]} 53. Kb5 {[%clk 0:00:11.2]} 53... Kd4 {[%clk 0:01:06.7]} 54. Be6
{[%clk 0:00:10.9]} 54... Ke5 {[%clk 0:01:02.9]} 55. Bf7 {[%clk 0:00:10.3]} 55...
Kf5 {[%clk 0:01:02.7]} 56. Bg8 {[%clk 0:00:09.8]} 56... g4 {[%clk 0:01:02.7]}
57. hxg4+ {[%clk 0:00:09.6]} 57... Kxg4 {[%clk 0:01:03.2]} 58. Bf7 {[%clk
0:00:08.8]} 58... Kf5 {[%clk 0:01:03.2]} 59. Bg8 {[%clk 0:00:09]} 59... Ke5
{[%clk 0:01:03.6]} 60. Bf7 {[%clk 0:00:09.2]} 60... Kd4 {[%clk 0:01:01.5]} 61.
Bg8 {[%clk 0:00:09.1]} 61... Kc3 {[%clk 0:01:01.8]} 62. Bf7 {[%clk 0:00:09.2]}
62... Kd4 {[%clk 0:01:01.9]} 63. Bg8 {[%clk 0:00:09.2]} 63... Bc5 {[%clk
0:01:02.1]} 64. Bf7 {[%clk 0:00:08.9]} 64... Bb4 {[%clk 0:01:02.3]} 65. Bg8
{[%clk 0:00:09]} 65... Ke5 {[%clk 0:01:00.7]} 66. Bf7 {[%clk 0:00:09]} 66... d5
{[%clk 0:01:01.6]} 67. Bxd5 {[%clk 0:00:08.4]} 67... Kd6 {[%clk 0:01:01.7]} 68.
Bg8 {[%clk 0:00:08.1]} 68... Bc3 {[%clk 0:01:02.1]} 69. Bf7 {[%clk 0:00:07.6]}
69... Bb4 {[%clk 0:01:02.4]} 70. Bg8 {[%clk 0:00:07.7]} 70... c6+ {[%clk
0:01:02.9]} 71. Kb6 {[%clk 0:00:07.3]} 71... Bc3 {[%clk 0:01:01.8]} 72. Kb7
{[%clk 0:00:07.1]} 72... Kc5 {[%clk 0:01:01.2]} 73. Kc7 {[%clk 0:00:06.8]} 73...
Bb4 {[%clk 0:01:01.2]} 74. Kb7 {[%clk 0:00:06.7]} 74... Bc3 {[%clk 0:01:01.4]}
75. Bf7 {[%clk 0:00:06.8]} 75... Kb4 {[%clk 0:01:01.6]} 76. Kxc6 {[%clk
0:00:06.3]} 76... Kxa4 {[%clk 0:01:02.1]} 77. c5 {[%clk 0:00:06.7]} 77... Kb4
{[%clk 0:01:02.3]} 78. Kb6 {[%clk 0:00:06.9]} 78... a4 {[%clk 0:01:02.5]} 79. c6
{[%clk 0:00:06.9]} 79... Be5 {[%clk 0:01:03]} 80. c7 {[%clk 0:00:06.9]} 80...
Bxc7+ {[%clk 0:01:02.9]} 81. Kxc7 {[%clk 0:00:07.8]} 81... a3 {[%clk 0:01:03.1]}
82. Kc6 {[%clk 0:00:08.2]} 82... Kc3 {[%clk 0:01:04]} 83. Kb5 {[%clk 0:00:08.1]}
83... Kb2 {[%clk 0:01:04.9]} 84. Kb4 {[%clk 0:00:08.5]} 84... a2 {[%clk
0:01:05.8]} 85. Bxa2 {[%clk 0:00:08.6]} 1/2-1/2

[Event "Early-Titled-Tuesday-Blitz-October-24-2023"]
[Site "Chess.com"]
[Date "2023.10.24"]
[Round "10"]
[White "HouseOfDurin"]
[Black "Gyulamiryan-koryun"]
[Result "1-0"]
[WhiteElo "2300"]
[BlackElo "1944"]
[TimeControl "180+1"]
[EndTime "9:53:55 PDT"]
[Termination "HouseOfDurin won by resignation"]

1. d4 {[%clk 0:02:58.7]} 1... Nf6 {[%clk 0:02:59.1]} 2. Bg5 {[%clk 0:02:58.9]}
2... e6 {[%clk 0:02:57.9]} 3. e4 {[%clk 0:02:58.6]} 3... Be7 {[%clk 0:02:55.3]}
4. Bd3 {[%clk 0:02:58]} 4... Nc6 {[%clk 0:02:45.2]} 5. c3 {[%clk 0:02:55.7]}
5... d5 {[%clk 0:02:41.6]} 6. Bxf6 {[%clk 0:02:55.7]} 6... Bxf6 {[%clk
0:02:40.9]} 7. e5 {[%clk 0:02:56.1]} 7... Bg5 {[%clk 0:02:34.8]} 8. Nd2 {[%clk
0:02:50.3]} 8... Ne7 {[%clk 0:02:33.3]} 9. h4 {[%clk 0:02:45.6]} 9... Bh6 {[%clk
0:02:28.8]} 10. g4 {[%clk 0:02:39.7]} 10... g6 {[%clk 0:02:28.6]} 11. g5 {[%clk
0:02:22.9]} 11... Bg7 {[%clk 0:02:28.5]} 12. h5 {[%clk 0:02:23.3]} 12... Nf5
{[%clk 0:02:24.3]} 13. h6 {[%clk 0:02:15.3]} 13... Bf8 {[%clk 0:02:23.7]} 14. f4
{[%clk 0:01:55.4]} 14... c5 {[%clk 0:02:23.1]} 15. Bb5+ {[%clk 0:01:46]} 15...
Bd7 {[%clk 0:02:21.5]} 16. Qa4 {[%clk 0:01:46.5]} 16... a6 {[%clk 0:02:19.2]}
17. Bxd7+ {[%clk 0:01:46.2]} 17... Qxd7 {[%clk 0:02:18.9]} 18. Qxd7+ {[%clk
0:01:42.1]} 18... Kxd7 {[%clk 0:02:18.4]} 19. Ngf3 {[%clk 0:01:38.6]} 19... Ne3
{[%clk 0:02:13.4]} 20. Ke2 {[%clk 0:01:36.5]} 20... Ng2 {[%clk 0:02:09.4]} 21.
Rhg1 {[%clk 0:01:00.3]} 21... Nxf4+ {[%clk 0:02:08.6]} 22. Ke3 {[%clk
0:01:00.6]} 22... Nh5 {[%clk 0:02:00]} 23. Raf1 {[%clk 0:01:00.9]} 23... Be7
{[%clk 0:01:45.7]} 24. dxc5 {[%clk 0:00:55.6]} 24... Bxc5+ {[%clk 0:01:44.5]}
25. Nd4 {[%clk 0:00:55.7]} 25... Rhf8 {[%clk 0:01:42.1]} 26. Rf2 {[%clk
0:00:41.6]} 26... Ke7 {[%clk 0:01:39.6]} 27. Nf1 {[%clk 0:00:38.7]} 27... b5
{[%clk 0:01:34.3]} 28. Nh2 {[%clk 0:00:31]} 28... b4 {[%clk 0:01:28.8]} 29. cxb4
{[%clk 0:00:28.6]} 29... Bxd4+ {[%clk 0:01:28.9]} 30. Kxd4 {[%clk 0:00:28.2]}
30... Rac8 {[%clk 0:01:27.7]} 31. b3 {[%clk 0:00:24.8]} 31... Rb8 {[%clk
0:01:09.7]} 32. a3 {[%clk 0:00:21.3]} 32... a5 {[%clk 0:01:09.6]} 33. bxa5
{[%clk 0:00:14.1]} 33... Rxb3 {[%clk 0:01:08.9]} 34. Rf3 {[%clk 0:00:14]} 34...
Rb5 {[%clk 0:01:07.5]} 35. Rc1 {[%clk 0:00:11.3]} 35... Rxa5 {[%clk 0:01:04.7]}
36. Rc7+ {[%clk 0:00:11.2]} 36... Kd8 {[%clk 0:01:04.6]} 37. Rfxf7 {[%clk
0:00:10]} 37... Rxf7 {[%clk 0:01:04.2]} 38. Rxf7 {[%clk 0:00:10.9]} 38... Ra4+
{[%clk 0:01:02.4]} 39. Kc5 {[%clk 0:00:10.9]} 39... Rxa3 {[%clk 0:01:00.8]} 40.
Rxh7 {[%clk 0:00:07]} 40... Nf4 {[%clk 0:00:58.2]} 41. Ng4 {[%clk 0:00:05.4]}
41... Ra6 {[%clk 0:00:56]} 42. Nf6 {[%clk 0:00:03.6]} 42... Nd3+ {[%clk
0:00:55.5]} 43. Kd4 {[%clk 0:00:03.5]} 43... Nf4 {[%clk 0:00:49.1]} 44. Rd7+
{[%clk 0:00:03.6]} 44... Kc8 {[%clk 0:00:48.6]} 45. h7 {[%clk 0:00:04.3]} 45...
Ra4+ {[%clk 0:00:45.3]} 46. Kc3 {[%clk 0:00:03.6]} 46... Ne2+ {[%clk 0:00:44.7]}
47. Kd2 {[%clk 0:00:03.4]} 47... Rh4 {[%clk 0:00:42.8]} 48. Rg7 {[%clk
0:00:02.4]} 48... Nf4 {[%clk 0:00:40.6]} 49. Rg8+ {[%clk 0:00:02.3]} 49... Kb7
{[%clk 0:00:38.7]} 50. h8=Q {[%clk 0:00:03.2]} 50... Rxh8 {[%clk 0:00:37.8]} 51.
Rxh8 {[%clk 0:00:04.1]} 51... Kc6 {[%clk 0:00:37.4]} 52. Rg8 {[%clk 0:00:02.9]}
52... Kc5 {[%clk 0:00:36.7]} 53. Ke3 {[%clk 0:00:02.6]} 53... Kc4 {[%clk
0:00:35.8]} 54. Kxf4 {[%clk 0:00:02.6]} 54... d4 {[%clk 0:00:34.2]} 55. Rxg6
{[%clk 0:00:03.5]} 55... d3 {[%clk 0:00:34]} 56. Ne4 {[%clk 0:00:04.4]} 56...
Kd4 {[%clk 0:00:33.4]} 57. Rxe6 {[%clk 0:00:04.1]} 57... d2 {[%clk 0:00:33.2]}
58. Rd6+ {[%clk 0:00:05]} 58... Kc4 {[%clk 0:00:32.6]} 59. Rxd2 {[%clk
0:00:05.6]} 1-0